bitfinex/quotes_BTCUSD_20241120
["timestamp","ask_amount","ask_price","bid_price","bid_amount"]
[1732133374935,1.44023579,94056.0,94051.0,0.0002]
[1732133376045,1.44223579,94056.0,94051.0,0.0002]
[1732133376313,1.41185485,94056.0,94051.0,0.0002]
[1732133376694,1.0764733,94056.0,94051.0,0.0002]
[1732133376940,0.71343412,94056.0,94051.0,0.0002]
[1732133377349,0.72343412,94056.0,94051.0,0.0002]
[1732133377540,0.75181506,94056.0,94051.0,0.0002]
[1732133378515,1.41427324,94056.0,94051.0,0.0002]
[1732133378799,1.57423579,94056.0,94051.0,0.0002]
[1732133380020,0.478324,94052.0,94051.0,0.0002]
[1732133380241,0.58543912,94052.0,94051.0,0.0002]
[1732133380480,0.61382006,94052.0,94051.0,0.0002]
[1732133380740,0.72288261,94052.0,94051.0,0.0002]
[1732133381156,0.728333,94044.0,94043.0,0.0017096]
[1732133381378,1.36112906,94044.0,94043.0,0.0017096]
[1732133381846,1.83048724,94044.0,94043.0,0.0017096]
[1732133382059,1.85985147,94044.0,94043.0,0.0017096]
[1732133383202,1.85985147,94044.0,94043.0,0.0027096]
[1732133383455,1.85985147,94044.0,94043.0,0.0037096]
[1732133384511,1.82947053,94044.0,94043.0,0.0027096]
[1732133384640,1.82947053,94044.0,94043.0,0.0037096]
[1732133384842,1.82947053,94044.0,94043.0,0.0027096]
[1732133385042,0.226339,94038.0,94037.0,0.0017108]
[1732133385254,1.3077123,94038.0,94037.0,0.0017108]
[1732133385451,1.2013733,94038.0,94037.0,0.0017108]
[1732133385890,0.7013733,94038.0,94037.0,0.0017108]
[1732133386136,0.73201512,94038.0,94037.0,0.0017108]
[1732133386504,0.73201512,94038.0,94037.0,0.1080518]
[1732133386712,0.1249,94038.0,94037.0,0.1080518]
[1732133387454,0.96935818,94054.0,94037.0,0.1080518]
[1732133387455,0.5,94054.0,94045.0,0.106331]
[1732133387650,0.5,94054.0,94037.0,0.0017108]
[1732133387651,0.60711512,94054.0,94053.0,0.106323]
[1732133388248,0.60711512,94054.0,94052.0,0.106323]
[1732133388454,0.60711512,94054.0,94053.0,0.106323]
[1732133388662,0.60711512,94054.0,94051.0,0.106324]
[1732133388859,0.60711512,94054.0,94052.0,0.106324]
[1732133389009,0.60711512,94054.0,94052.0,0.106323]
[1732133389217,0.60711512,94054.0,94053.0,0.106323]
[1732133389641,0.46935818,94062.0,94058.0,0.106317]
[1732133389844,0.1249,94064.0,94058.0,0.106317]
[1732133390743,0.01437386,94059.0,94053.0,0.106323]
[1732133390946,0.01437386,94059.0,94044.0,0.0454]
[1732133390947,0.60711512,94058.0,94044.0,0.0454]
[1732133391154,0.62104251,94058.0,94049.0,0.106327]
[1732133391601,0.62104251,94058.0,94033.0,0.1080558]
[1732133391861,0.62104251,94058.0,94041.0,0.106336]
[1732133392064,0.62104251,94058.0,94040.0,0.106337]
[1732133392279,0.10906255,94057.0,94045.0,0.106331]
[1732133392493,0.10711512,94056.0,94045.0,0.106331]
[1732133392694,0.10711512,94056.0,94045.0,0.212662]
[1732133392896,0.10507637,94055.0,94033.0,0.0017108]
[1732133393101,0.10711512,94054.0,94045.0,0.106332]
[1732133393728,0.10711512,94054.0,94043.0,0.106334]
[1732133393936,0.06685101,94053.0,94044.0,0.106333]
[1732133394152,0.10711512,94052.0,94043.0,0.106334]
[1732133394372,0.10711512,94052.0,94039.0,0.106338]
[1732133394373,0.21617767,94052.0,94039.0,0.106338]
[1732133394573,0.21617767,94052.0,94038.0,0.106339]
[1732133394782,0.21617767,94052.0,94037.0,0.0017108]
[1732133394988,0.5,94047.0,94037.0,0.0017108]
[1732133395208,0.10711512,94046.0,94037.0,0.1080508]
[1732133395375,0.10711512,94046.0,94038.0,0.106339]
[1732133395560,0.10711512,94046.0,94040.0,0.106337]
[1732133395767,0.08063215,94045.0,94038.0,0.106339]
[1732133396015,0.08063215,94045.0,94039.0,0.106338]
[1732133396016,0.10711512,94044.0,94039.0,0.106338]
[1732133396215,0.10711512,94044.0,94038.0,0.106339]
[1732133396613,0.10711512,94044.0,94041.0,0.106335]
[1732133396791,0.10711512,94044.0,94037.0,0.0017108]
[1732133396792,0.17711477,94044.0,94037.0,0.0017108]
[1732133397311,0.106339,94038.0,94037.0,0.0017108]
[1732133397463,0.21345412,94038.0,94037.0,0.0017108]
[1732133398092,0.10711512,94038.0,94037.0,0.0017108]
[1732133398307,0.21345412,94038.0,94037.0,0.0017108]
[1732133398501,0.10711512,94038.0,94037.0,0.0017108]
[1732133398723,0.21617767,94038.0,94037.0,0.0017108]
[1732133398944,0.10711512,94038.0,94037.0,0.0017108]
[1732133399360,0.46935818,94041.0,94037.0,0.0017108]
[1732133399696,0.10711512,94040.0,94037.0,0.2143908]
[1732133399919,0.10711512,94040.0,94037.0,0.0017108]
[1732133400141,0.10906255,94039.0,94037.0,0.0017108]
[1732133400369,0.10711512,94039.0,94038.0,0.106339]
[1732133400596,0.46935818,94041.0,94040.0,0.106337]
[1732133400826,0.1249,94045.0,94044.0,0.106333]
[1732133401050,0.46935818,94065.0,94050.0,0.106325]
[1732133401290,0.10711512,94052.0,94051.0,0.106325]
[1732133401558,0.11816919,94052.0,94047.0,0.106329]
[1732133401795,0.11816919,94052.0,94047.0,0.212658]
[1732133402036,0.10711512,94052.0,94043.0,0.106334]
[1732133402257,0.10711512,94052.0,94051.0,0.106325]
[1732133402684,0.0017126,94059.0,94052.0,0.106324]
[1732133403511,0.10882812,94053.0,94033.0,0.0017108]
[1732133403714,0.16816919,94052.0,94041.0,0.106336]
[1732133403847,0.16816919,94052.0,94038.0,0.106339]
[1732133404056,0.16816919,94052.0,94041.0,0.106335]
[1732133404260,0.04888372,94051.0,94042.0,0.106335]
[1732133404463,0.10711512,94050.0,94043.0,0.106333]
[1732133404675,0.10711512,94050.0,94037.0,0.1080508]
[1732133404676,0.10711512,94050.0,94037.0,0.0017108]
[1732133404875,0.5,94046.0,94037.0,0.0017108]
[1732133405111,0.10711512,94045.0,94037.0,0.0017108]
[1732133405518,0.001713,94053.0,94042.0,0.106334]
[1732133405723,0.10711512,94052.0,94051.0,0.106325]
[1732133405928,0.001713,94053.0,94052.0,0.106324]
[1732133407024,0.001713,94053.0,94052.0,0.188024]
[1732133408078,0.001713,94053.0,94052.0,0.2890871]
[1732133408292,0.001713,94053.0,94052.0,0.288024]
[1732133409596,0.001713,94053.0,94052.0,0.33022514]
[1732133409806,0.001713,94053.0,94052.0,0.1817]
[1732133410024,0.001713,94053.0,94052.0,0.288024]
[1732133412215,0.001713,94053.0,94052.0,0.30746558]
[1732133412593,0.001713,94053.0,94052.0,0.31746558]
[1732133412993,0.001713,94053.0,94052.0,0.32746558]
[1732133413396,0.001713,94053.0,94052.0,0.32746465]
[1732133413597,0.001713,94053.0,94052.0,0.31746465]
[1732133413844,0.001713,94053.0,94052.0,0.22576465]
[1732133414298,0.001713,94053.0,94052.0,0.206324]
[1732133418007,0.001713,94053.0,94052.0,0.2492215]
[1732133418207,0.001713,94053.0,94052.0,0.206324]
[1732133420714,0.001713,94053.0,94052.0,0.24880153]
[1732133422704,0.001713,94053.0,94052.0,0.37015246]
[1732133423284,0.001713,94053.0,94052.0,0.32767493]
[1732133425788,0.001713,94053.0,94052.0,0.106324]
[1732133426009,0.001713,94053.0,94052.0,0.1]
[1732133426213,0.001713,94053.0,94052.0,0.106324]
[1732133427049,0.001713,94053.0,94052.0,0.15035729]
[1732133427266,0.001713,94053.0,94052.0,0.106324]
[1732133427468,0.001713,94053.0,94052.0,0.10738719]
[1732133427671,0.001713,94053.0,94052.0,0.186724]
[1732133427873,0.001713,94053.0,94052.0,0.18778713]
[1732133428092,0.001713,94053.0,94052.0,0.186724]
[1732133428241,0.001713,94053.0,94052.0,0.20621924]
[1732133428445,0.001713,94053.0,94052.0,0.36623837]
[1732133428842,0.001713,94053.0,94052.0,0.30622403]
[1732133429387,0.001713,94053.0,94052.0,0.34856099]
[1732133429681,0.001713,94053.0,94052.0,0.46991508]
[1732133429947,0.001713,94053.0,94052.0,0.34856415]
[1732133430083,0.001713,94053.0,94052.0,0.35027575]
[1732133430488,0.07888877,94070.0,94053.0,0.1]
[1732133430698,0.07888877,94070.0,94069.0,0.106304]
[1732133431054,0.07888877,94070.0,94069.0,0.12582336]
[1732133431682,0.07888877,94070.0,94069.0,0.12766211]
[1732133431930,0.46935818,94092.0,94069.0,0.12766211]
[1732133431931,0.0797,94096.0,94070.0,0.106303]
[1732133432164,0.0797,94096.0,94069.0,0.02135811]
[1732133432165,0.5,94089.0,94081.0,0.10629]
[1732133432417,0.10711512,94088.0,94074.0,0.12135093]
[1732133432690,0.10711512,94088.0,94083.0,0.106288]
[1732133432927,0.10711512,94088.0,94084.0,0.106287]
[1732133433167,0.10711512,94088.0,94086.0,0.106284]
[1732133433403,0.10711512,94088.0,94084.0,0.00157797]
[1732133433650,0.10711512,94088.0,94087.0,0.00157795]
[1732133433899,0.10711512,94088.0,94082.0,0.10629]
[1732133434150,0.10711512,94088.0,94087.0,0.00157718]
[1732133434408,0.10711512,94088.0,94082.0,0.10629]
[1732133434643,0.10711512,94088.0,94087.0,0.00157718]
[1732133434880,0.10711512,94088.0,94081.0,0.10629]
[1732133435111,0.10711512,94088.0,94087.0,0.00157718]
[1732133435331,0.10711512,94088.0,94082.0,0.106289]
[1732133435559,0.10711512,94088.0,94081.0,0.10629]
[1732133435560,0.10711512,94088.0,94087.0,0.00157718]
[1732133435774,0.10711512,94088.0,94084.0,0.106286]
[1732133435975,0.10711512,94088.0,94087.0,0.00157563]
[1732133436192,0.10711512,94088.0,94081.0,0.21258]
[1732133436389,0.10711512,94088.0,94087.0,0.00157409]
[1732133436891,0.10711512,94088.0,94079.0,0.106292]
[1732133437372,0.10711512,94088.0,94082.0,0.106289]
[1732133437560,0.10711512,94088.0,94087.0,0.106284]
[1732133437832,0.0797,94096.0,94090.0,0.10628]
[1732133438047,0.1096,94098.0,94097.0,0.106273]
[1732133438258,0.1096,94098.0,94090.0,0.12135093]
[1732133438521,0.1096,94098.0,94097.0,0.10783183]
[1732133438765,0.1096,94098.0,94097.0,0.106273]
[1732133439006,0.1096,94098.0,94097.0,0.00155883]
[1732133439397,0.1096,94098.0,94091.0,0.10628]
[1732133439629,0.1096,94098.0,94090.0,0.12135093]
[1732133439824,0.1096,94098.0,94097.0,0.106273]
[1732133440319,0.1096,94098.0,94090.0,0.12135093]
[1732133440320,0.1096,94098.0,94090.0,0.22763193]
[1732133440463,0.1096,94098.0,94097.0,0.00156038]
[1732133440672,0.1096,94098.0,94082.0,0.12135093]
[1732133440873,0.106281,94090.0,94075.0,0.1]
[1732133441103,0.10711512,94097.0,94075.0,0.14303993]
[1732133441313,0.10711512,94097.0,94083.0,0.106288]
[1732133441314,0.106275,94095.0,94083.0,0.106288]
[1732133441503,0.10711512,94094.0,94084.0,0.106286]
[1732133441703,0.106278,94093.0,94084.0,0.00156818]
[1732133442041,0.10711512,94092.0,94075.0,0.206297]
[1732133442242,0.10711512,94092.0,94082.0,0.106289]
[1732133442379,0.10711512,94092.0,94082.0,0.212578]
[1732133442584,0.10711512,94092.0,94083.0,0.00156585]
[1732133442791,0.5,94090.0,94083.0,0.00156585]
[1732133443092,0.5,94090.0,94076.0,0.106296]
[1732133443093,0.10711512,94089.0,94076.0,0.106296]
[1732133443299,0.106283,94088.0,94075.0,0.206297]
[1732133443523,0.106283,94088.0,94077.0,0.1015724]
[1732133443729,0.106283,94088.0,94077.0,0.1]
[1732133443928,0.10711512,94089.0,94078.0,0.00156852]
[1732133444130,0.106285,94087.0,94078.0,0.00156852]
[1732133444381,0.106285,94087.0,94075.0,0.106297]
[1732133444541,0.0819,94086.0,94070.0,0.0017112]
[1732133444744,0.0819,94086.0,94076.0,0.10786315]
[1732133444939,0.0819,94086.0,94076.0,0.106296]
[1732133445168,0.0819,94086.0,94081.0,0.106291]
[1732133445370,0.10711512,94089.0,94082.0,0.0194944]
[1732133445606,0.10711512,94089.0,94084.0,0.106287]
[1732133445777,0.10711512,94089.0,94085.0,0.0194944]
[1732133446003,0.10711512,94089.0,94086.0,0.00155958]
[1732133446224,0.10711512,94089.0,94086.0,0.0194944]
[1732133446379,0.10711512,94089.0,94087.0,0.0194944]
[1732133446578,0.10711512,94089.0,94078.0,0.02276459]
[1732133446777,0.10711512,94089.0,94079.0,0.02106076]
[1732133447097,0.10711512,94089.0,94080.0,0.0194952]
[1732133447298,0.10711512,94089.0,94081.0,0.0194952]
[1732133447501,0.10711512,94089.0,94082.0,0.0194952]
[1732133447725,0.10711512,94089.0,94083.0,0.0194952]
[1732133447872,0.10711512,94089.0,94080.0,0.0194952]
[1732133448070,0.10711512,94089.0,94084.0,0.00156012]
[1732133448267,0.10711512,94089.0,94082.0,0.0194952]
[1732133448477,0.10711512,94089.0,94081.0,0.0194952]
[1732133448664,0.16108122,94089.0,94083.0,0.02105764]
[1732133448928,0.16108122,94089.0,94084.0,0.0194952]
[1732133449127,0.16108122,94089.0,94085.0,0.0194952]
[1732133449361,0.10711512,94089.0,94080.0,0.0194952]
[1732133449561,0.10711512,94089.0,94081.0,0.0194952]
[1732133449711,0.10711512,94089.0,94081.0,0.00156478]
[1732133449919,0.21617767,94089.0,94081.0,0.00156478]
[1732133450245,0.5,94083.0,94066.0,0.12135093]
[1732133450454,0.10711512,94082.0,94071.0,0.106301]
[1732133450686,0.10711512,94082.0,94071.0,0.00156696]
[1732133450885,0.10711512,94082.0,94073.0,0.1063]
[1732133451296,0.10711512,94082.0,94074.0,0.00156538]
[1732133451297,0.10700203,94082.0,94074.0,0.00156538]
[1732133452194,0.10700203,94082.0,94071.0,0.106302]
[1732133452402,0.10700203,94082.0,94072.0,0.106301]
[1732133452634,0.10700203,94082.0,94074.0,0.106299]
[1732133452834,0.10700203,94082.0,94072.0,0.00145542]
[1732133453043,0.10700203,94082.0,94075.0,0.00156271]
[1732133453247,0.10700203,94082.0,94073.0,0.106299]
[1732133453452,0.10700203,94082.0,94074.0,0.106299]
[1732133453660,0.048,94093.0,94074.0,0.02143142]
[1732133453861,0.10711512,94092.0,94075.0,0.0014554]
[1732133454075,0.10711512,94092.0,94085.0,0.106286]
[1732133454278,0.10711512,94092.0,94083.0,0.212577]
[1732133454481,0.10711512,94092.0,94082.0,0.106289]
[1732133454702,0.0819,94095.0,94084.0,0.00156658]
[1732133454907,0.1096,94098.0,94082.0,0.106289]
[1732133455117,0.1096,94098.0,94083.0,0.03090399]
[1732133455307,0.1096,94098.0,94085.0,0.106286]
[1732133455533,0.0008555,94089.0,94083.0,0.00156583]
[1732133455725,0.0008555,94089.0,94074.0,0.106298]
[1732133455924,0.0008555,94089.0,94084.0,0.00156656]
[1732133456117,0.0008555,94089.0,94082.0,0.106289]
[1732133456466,0.0008555,94089.0,94079.0,0.106293]
[1732133456677,0.05008555,94088.0,94083.0,0.0015603]
[1732133456906,0.05008555,94088.0,94072.0,0.106301]
[1732133456907,0.10711512,94087.0,94072.0,0.106301]
[1732133457074,0.10711512,94087.0,94074.0,0.106299]
[1732133457276,0.10711512,94087.0,94083.0,0.106288]
[1732133457474,0.10711512,94087.0,94080.0,0.106291]
[1732133457680,0.10711512,94087.0,94074.0,0.106299]
[1732133457883,0.10711512,94087.0,94081.0,0.00148671]
[1732133458104,0.10711512,94087.0,94077.0,0.106294]
[1732133458342,0.10711512,94087.0,94082.0,0.00148621]
[1732133458665,0.10711512,94087.0,94083.0,0.00148389]
[1732133458874,0.16246534,94087.0,94083.0,0.00148389]
[1732133459075,0.16246534,94087.0,94078.0,0.106294]
[1732133459276,0.10711512,94087.0,94076.0,0.106296]
[1732133459481,0.10711512,94087.0,94079.0,0.00148855]
[1732133459706,0.10711512,94087.0,94077.0,0.10778532]
[1732133459911,0.10711512,94087.0,94077.0,0.106295]
[1732133460111,0.106286,94086.0,94078.0,0.00148799]
[1732133460329,0.04268196,94085.0,94078.0,0.00148799]
[1732133460545,0.04268196,94085.0,94076.0,0.106296]
[1732133460749,0.04268196,94085.0,94078.0,0.106294]
[1732133460968,0.10711512,94087.0,94077.0,0.00148876]
[1732133461145,0.10711512,94087.0,94079.0,0.0014872]
[1732133461319,0.10711512,94087.0,94078.0,0.10778379]
[1732133461523,0.10711512,94087.0,94080.0,0.00148746]
[1732133461690,0.10711512,94087.0,94079.0,0.00148592]
[1732133461884,0.10711512,94087.0,94081.0,0.00148436]
[1732133462336,0.10711512,94087.0,94074.0,0.106298]
[1732133462542,0.10711512,94087.0,94071.0,0.001711]
[1732133462543,0.10711512,94087.0,94082.0,0.00148667]
[1732133462746,0.10711512,94087.0,94077.0,0.106295]
[1732133462952,0.10711512,94087.0,94083.0,0.00148313]
[1732133463147,0.10711512,94087.0,94077.0,0.106295]
[1732133463375,0.21208987,94087.0,94084.0,0.00144492]
[1732133463510,0.21208987,94087.0,94071.0,0.001711]
[1732133463709,0.10711512,94087.0,94078.0,0.106293]
[1732133463921,0.10711512,94087.0,94072.0,0.00145196]
[1732133464129,0.10711512,94087.0,94079.0,0.00144573]
[1732133464427,0.10711512,94087.0,94071.0,0.001711]
[1732133464638,0.10711512,94087.0,94078.0,0.106294]
[1732133464839,0.10711512,94087.0,94076.0,0.106296]
[1732133465092,0.10711512,94087.0,94077.0,0.10774074]
[1732133465470,0.10711512,94087.0,94079.0,0.106293]
[1732133466058,0.10711512,94087.0,94080.0,0.00144783]
[1732133466446,0.10711512,94087.0,94080.0,0.00139523]
[1732133466871,0.10711512,94087.0,94078.0,0.106294]
[1732133467220,0.10711512,94087.0,94076.0,0.106296]
[1732133467422,0.10711512,94087.0,94077.0,0.00144678]
[1732133467910,0.10711512,94087.0,94079.0,0.001711]
[1732133468232,0.10711512,94087.0,94080.0,0.00144522]
[1732133468438,0.10711512,94087.0,94079.0,0.001711]
[1732133468659,0.10711512,94087.0,94080.0,0.00144522]
[1732133469952,0.10711512,94087.0,94079.0,0.001711]
[1732133470164,0.10711512,94087.0,94081.0,0.00144676]
[1732133470369,0.10711512,94087.0,94079.0,0.001711]
[1732133470576,0.10711512,94087.0,94082.0,0.00144588]
[1732133470760,0.10711512,94087.0,94079.0,0.001711]
[1732133470968,0.10711512,94087.0,94083.0,0.00144433]
[1732133471194,0.10711512,94087.0,94079.0,0.001711]
[1732133471334,0.10711512,94087.0,94084.0,0.00144096]
[1732133471536,0.19724808,94087.0,94079.0,0.001711]
[1732133471936,0.19724808,94087.0,94080.0,0.00143979]
[1732133473335,0.19724808,94087.0,94079.0,0.001711]
[1732133473702,0.10711512,94087.0,94079.0,0.001711]
[1732133474681,0.10711512,94087.0,94080.0,0.00144785]
[1732133476057,0.10711512,94087.0,94079.0,0.001711]
[1732133476257,0.10711512,94087.0,94081.0,0.00143884]
[1732133476668,0.10711512,94087.0,94080.0,0.00143973]
[1732133476872,0.10711512,94087.0,94079.0,0.001711]
[1732133477266,0.10711512,94087.0,94081.0,0.00144546]
[1732133477506,0.10711512,94087.0,94080.0,0.00144314]
[1732133477710,0.10711512,94087.0,94082.0,0.00144081]
[1732133477865,0.10711512,94087.0,94079.0,0.001711]
[1732133478071,0.10711512,94087.0,94083.0,0.00143926]
[1732133478230,0.10711512,94087.0,94079.0,0.001711]
[1732133478636,0.10711512,94087.0,94080.0,0.0047087]
[1732133478885,0.10711512,94087.0,94081.0,0.00331717]
[1732133479091,0.10711512,94087.0,94081.0,0.00138769]
[1732133479290,0.10711512,94087.0,94082.0,0.00331717]
[1732133479440,0.10797062,94087.0,94083.0,0.00331717]
[1732133479665,0.10797062,94087.0,94084.0,0.00470328]
[1732133479848,0.10797062,94087.0,94085.0,0.00331717]
[1732133480046,0.10797062,94087.0,94086.0,0.00331717]
[1732133480330,0.32331717,94087.0,94086.0,0.00331717]
[1732133480474,0.80281288,94087.0,94086.0,0.00331717]
[1732133480672,0.106292,94080.0,94079.0,0.001711]
[1732133480918,0.30885704,94080.0,94079.0,0.001711]
[1732133481364,0.21340712,94080.0,94079.0,0.001711]
[1732133481606,0.10711512,94080.0,94079.0,0.001711]
[1732133481806,0.59544992,94085.0,94079.0,0.001711]
[1732133481942,0.5,94085.0,94079.0,0.001711]
[1732133482149,0.5,94085.0,94080.0,0.00128507]
[1732133482542,0.0008555,94087.0,94086.0,0.106285]
[1732133482657,0.0008555,94087.0,94084.0,0.212574]
[1732133482865,0.0008555,94087.0,94086.0,0.106285]
[1732133483298,0.0008555,94087.0,94085.0,0.10757535]
[1732133483770,0.0008555,94087.0,94086.0,0.10757125]
[1732133484695,0.0008555,94087.0,94086.0,0.00128625]
[1732133485034,0.12581697,94087.0,94079.0,0.001711]
[1732133485229,0.5,94084.0,94079.0,0.001711]
[1732133485492,0.10711512,94083.0,94079.0,0.001711]
[1732133488904,0.10711512,94083.0,94080.0,0.00128559]
[1732133489326,0.10711512,94083.0,94079.0,0.001711]
[1732133491986,0.106292,94080.0,94079.0,0.001711]
[1732133492216,0.21340712,94080.0,94079.0,0.001711]
[1732133492450,0.95543266,94080.0,94079.0,0.001711]
[1732133492591,0.639301,94072.0,94071.0,0.001711]
[1732133492921,2.15562764,94072.0,94071.0,0.001711]
[1732133493122,2.15562764,94072.0,94052.0,0.0017116]
[1732133493123,0.5,94053.0,94052.0,0.0017116]
[1732133493468,1.04280815,94053.0,94052.0,0.0017116]
[1732133493684,0.79521512,94053.0,94052.0,0.0017116]
[1732133493908,0.1096,94053.0,94052.0,0.0017116]
[1732133494126,0.1096,94053.0,94052.0,0.1080356]
[1732133494335,0.1096,94053.0,94052.0,0.0017116]
[1732133494546,0.1096,94053.0,94052.0,0.00288205]
[1732133499049,0.1096,94053.0,94052.0,0.10920605]
[1732133500510,0.33399812,94053.0,94052.0,0.00288205]
[1732133500722,0.83399812,94053.0,94052.0,0.00288205]
[1732133500934,0.91249812,94053.0,94052.0,0.0017116]
[1732133501362,0.90153812,94053.0,94052.0,0.0017116]
[1732133502634,1.01345852,94053.0,94052.0,0.0017116]
[1732133503053,0.99045852,94053.0,94052.0,0.0017116]
[1732133503265,0.49045852,94053.0,94052.0,0.0017116]
[1732133503470,0.99045852,94053.0,94052.0,0.0017116]
[1732133503660,1.09952107,94053.0,94052.0,0.0017116]
[1732133504010,1.09652107,94053.0,94052.0,0.0017116]
[1732133505591,1.12152107,94053.0,94052.0,0.0017116]
[1732133507018,1.70087925,94053.0,94052.0,0.0017116]
[1732133508796,1.71087925,94053.0,94052.0,0.0017116]
[1732133510227,0.608336,94041.0,94040.0,0.0008565]
[1732133510437,0.96340205,94041.0,94040.0,0.0008565]
[1732133513480,0.84205112,94041.0,94040.0,0.0008565]
[1732133513981,0.88525867,94041.0,94040.0,0.0008565]
[1732133516067,1.35461685,94041.0,94040.0,0.0008565]
[1732133516323,1.43140907,94041.0,94040.0,0.0008565]
[1732133516985,1.55276,94041.0,94040.0,0.0008565]
[1732133518491,1.58576,94041.0,94040.0,0.0008565]
[1732133518701,1.58776,94041.0,94040.0,0.0008565]
[1732133523478,1.58576,94041.0,94040.0,0.0008565]
[1732133523689,1.58776,94041.0,94040.0,0.0008565]
[1732133523913,1.58576,94041.0,94040.0,0.0008565]
[1732133524147,1.35461685,94041.0,94040.0,0.0008565]
[1732133524380,0.83555867,94041.0,94040.0,0.0008565]
[1732133524626,0.75665867,94041.0,94040.0,0.0008565]
[1732133527868,0.94675867,94041.0,94040.0,0.0008565]
[1732133528076,0.94875867,94041.0,94040.0,0.0008565]
[1732133528359,1.5271794,94041.0,94040.0,0.0008565]
[1732133529460,1.6031794,94041.0,94040.0,0.0008565]
[1732133530302,0.26269493,94034.0,94033.0,0.0017108]
[1732133530437,1.02256045,94034.0,94033.0,0.0017108]
[1732133532829,1.02256045,94034.0,94033.0,0.0027108]
[1732133533065,1.02256045,94034.0,94033.0,0.0037108]
[1732133533790,1.13256045,94034.0,94033.0,0.0037108]
[1732133535272,1.12256045,94034.0,94033.0,0.0037108]
[1732133536812,1.21754366,94034.0,94033.0,0.0037108]
[1732133537271,1.12256045,94034.0,94033.0,0.0037108]
[1732133537516,1.12256045,94034.0,94014.0,0.0008556]
[1732133537517,0.709666,94015.0,94014.0,0.0008556]
[1732133537778,0.62938,94002.0,94001.0,0.0924112]
[1732133538036,0.73649512,94002.0,94001.0,0.0924112]
[1732133538481,0.84555767,94002.0,94001.0,0.0924112]
[1732133538905,0.73649512,94002.0,94001.0,0.0924112]
[1732133539353,0.73649512,94002.0,93991.0,0.0002]
[1732133539354,0.729392,93992.0,93991.0,0.0002]
[1732133539575,1.4124653,93992.0,93991.0,0.0002]
[1732133540999,1.4124653,93992.0,93991.0,0.0012]
[1732133541231,1.5637183,93992.0,93991.0,0.0012]
[1732133542220,1.7167183,93992.0,93991.0,0.0022]
[1732133542457,1.8582183,93992.0,93991.0,0.0022]
[1732133542689,1.8582183,93992.0,93991.0,0.0012]
[1732133542932,1.8582183,93992.0,93991.0,0.0022]
[1732133543167,1.8562183,93992.0,93991.0,0.0022]
[1732133543638,1.73715575,93992.0,93991.0,0.0022]
[1732133543885,1.4655733,93992.0,93991.0,0.0022]
[1732133544179,1.1830733,93992.0,93991.0,0.0022]
[1732133544687,0.6830733,93992.0,93991.0,0.0022]
[1732133544921,0.1066,93992.0,93991.0,0.0022]
[1732133545370,0.1066,93992.0,93991.0,0.10966348]
[1732133545585,0.1066,93992.0,93991.0,0.108593]
[1732133545791,0.1066,93992.0,93991.0,0.00228551]
[1732133546020,0.1066,93992.0,93991.0,0.0012]
[1732133546229,0.1296,93992.0,93991.0,0.0012]
[1732133546452,0.73671512,93992.0,93991.0,0.0012]
[1732133547143,0.73671512,93992.0,93991.0,0.0022]
[1732133547651,0.1066,93992.0,93991.0,0.0022]
[1732133547876,0.1066,93992.0,93991.0,0.0012]
[1732133548112,0.11726,93992.0,93991.0,0.0022806]
[1732133548318,0.11726,93992.0,93991.0,0.0002]
[1732133548744,0.1296,93992.0,93991.0,0.0012]
[1732133548955,0.1066,93992.0,93991.0,0.107593]
[1732133549168,0.1066,93992.0,93991.0,0.00228091]
[1732133549389,0.14026,93992.0,93991.0,0.00228091]
[1732133549601,0.14026,93992.0,93991.0,0.0012]
[1732133550027,0.24737512,93992.0,93991.0,0.0012]
[1732133550892,0.23671512,93992.0,93991.0,0.0012]
[1732133551338,0.23671512,93992.0,93991.0,0.0002]
[1732133551557,0.23671512,93992.0,93991.0,0.0012]
[1732133551991,0.23671512,93992.0,93991.0,0.0002]
[1732133552206,0.23671512,93992.0,93991.0,0.0012]
[1732133552450,0.23671512,93992.0,93991.0,0.0020558]
[1732133552665,0.23671512,93992.0,93991.0,0.0030558]
[1732133553100,0.23671512,93992.0,93991.0,0.0020558]
[1732133553537,0.23671512,93992.0,93991.0,0.0030558]
[1732133554220,0.23471512,93992.0,93991.0,0.0030558]
[1732133557044,0.34110712,93992.0,93991.0,0.0030558]
[1732133557736,0.23471512,93992.0,93991.0,0.0030558]
[1732133559910,0.23471512,93992.0,93991.0,0.00414057]
[1732133560117,0.1276,93992.0,93991.0,0.00414057]
[1732133560784,0.1276,93992.0,93991.0,0.0030558]
[1732133561226,0.23471512,93992.0,93991.0,0.0030558]
[1732133561457,0.34110712,93992.0,93991.0,0.0030558]
[1732133561676,0.23471512,93992.0,93991.0,0.0030558]
[1732133564646,0.36560871,93992.0,93991.0,0.0030558]
[1732133565181,0.25921671,93992.0,93991.0,0.0030558]
[1732133568798,0.023,93991.0,93978.0,0.106407]
[1732133569017,0.023,93991.0,93977.0,0.106409]
[1732133569231,0.023,93991.0,93979.0,0.106406]
[1732133569696,0.023,93991.0,93977.0,0.106408]
[1732133570203,0.023,93991.0,93978.0,0.107407]
[1732133570726,0.10538801,93990.0,93976.0,0.001711]
[1732133570945,0.023,93987.0,93976.0,0.10812]
[1732133571178,0.023,93987.0,93979.0,0.001]
[1732133571414,0.023,93989.0,93979.0,0.001]
[1732133571638,0.23651012,93989.0,93979.0,0.001]
[1732133571842,0.05538911,93988.0,93979.0,0.001]
[1732133572051,0.106398,93986.0,93979.0,0.001]
[1732133572264,0.023,93987.0,93979.0,0.001]
[1732133572681,0.106399,93986.0,93976.0,0.001711]
[1732133572897,0.023,93985.0,93976.0,0.001711]
[1732133573132,0.023,93983.0,93976.0,0.001711]
[1732133574837,0.023,93983.0,93976.0,0.08293244]
[1732133578561,0.106403,93982.0,93976.0,0.08293244]
[1732133578772,0.023,93981.0,93976.0,0.08293244]
[1732133578974,0.023,93983.0,93976.0,0.08293244]
[1732133580356,0.129403,93983.0,93976.0,0.001711]
[1732133580584,0.023,93983.0,93976.0,0.001711]
[1732133583349,0.235808,93981.0,93976.0,0.001711]
[1732133583553,0.129409,93977.0,93976.0,0.001711]
[1732133583754,0.34558667,93977.0,93976.0,0.001711]
[1732133587214,0.38805782,93977.0,93976.0,0.001711]
[1732133587826,0.43665782,93977.0,93976.0,0.001711]
[1732133588172,0.51787926,93977.0,93976.0,0.001711]
[1732133588380,0.98723744,93977.0,93976.0,0.001711]
[1732133588551,1.06673744,93977.0,93976.0,0.001711]